bitfinex/quotes_ETHUSD_20251119
["timestamp","ask_amount","ask_price","bid_price","bid_amount"]
[1763567438233,0.405504,2990.4,2989.1,0.001]
[1763567438703,0.119,2990.7,2989.1,0.001]
[1763567438704,0.405504,2990.0,2989.1,0.001]
[1763567438909,0.6771,2989.9,2989.1,0.001]
[1763567439073,0.119,2989.8,2989.1,0.001]
[1763567439269,0.405504,2989.7,2989.1,0.001]
[1763567439901,0.119,2989.8,2989.1,0.177]
[1763567440474,0.1892,2990.2,2989.1,0.177]
[1763567440822,3.34384201,2990.6,2989.1,0.177]
[1763567440823,0.119,2990.1,2989.1,0.6686]
[1763567441180,0.119,2990.1,2989.1,0.177]
[1763567441374,0.119,2990.1,2989.1,0.001]
[1763567441704,0.405504,2989.9,2989.1,0.001]
[1763567441909,0.405504,2989.7,2989.1,0.001]
[1763567442334,0.4879,2989.8,2989.1,0.001]
[1763567442539,0.119,2990.1,2989.2,0.4916]
[1763567443338,0.119,2990.0,2989.2,7.31096489]
[1763567443504,0.1899,2990.9,2989.3,0.4916]
[1763567443505,0.119,2989.9,2989.3,0.4916]
[1763567444108,0.119,2989.9,2989.1,0.1861]
[1763567444409,0.119,2989.9,2989.1,0.6777]
[1763567445309,0.119,2989.9,2989.1,0.1861]
[1763567445614,0.4879,2989.8,2989.1,0.001]
[1763567445820,0.119,2989.9,2989.1,0.177]
[1763567447545,0.405504,2989.8,2989.1,0.001]
[1763567448435,0.893404,2989.8,2989.1,0.001]
[1763567449042,0.405504,2989.6,2989.1,0.001]
[1763567449240,0.4879,2989.7,2989.1,0.001]
[1763567449241,0.405504,2989.4,2989.1,0.001]
[1763567449414,0.4879,2989.5,2989.1,0.001]
[1763567449753,0.405504,2989.8,2989.1,0.001]
[1763567450965,0.893404,2989.8,2989.1,0.001]
[1763567451160,0.405504,2989.8,2989.1,0.001]
[1763567451568,0.4926,2990.1,2989.2,0.4916]
[1763567451769,0.119,2989.7,2989.2,0.4916]
[1763567453450,0.119,2989.7,2989.1,0.001]
[1763567453659,0.119,2989.7,2989.2,0.4916]
[1763567454178,0.1892,2987.5,2984.6,0.1851]
[1763567454467,0.1892,2987.5,2983.8,0.17152339]
[1763567454468,0.09999999,2985.0,2983.8,0.17152339]
[1763567454643,0.8744,2985.4,2984.3,0.4916]
[1763567454843,0.8744,2985.4,2984.4,3.10873234]
[1763567454844,0.9944,2985.4,2984.4,3.10873234]
[1763567455163,0.67026177,2985.3,2984.2,0.1851]
[1763567455341,0.09999999,2985.0,2984.2,0.6767]
[1763567455526,1.34344309,2984.9,2983.6,0.4916]
[1763567455731,0.67026177,2984.8,2983.6,0.4916]
[1763567455953,1.51414438,2984.7,2983.3,0.1851]
[1763567456153,1.51414438,2984.6,2983.0,0.6767]
[1763567456370,0.09999999,2984.0,2982.5,0.1851]
[1763567456678,0.79026177,2983.9,2982.7,0.4916]
[1763567456879,0.67026177,2983.8,2982.7,0.4916]
[1763567457082,0.66946177,2983.7,2982.7,0.4916]
[1763567457230,0.1513,2984.9,2983.1,6.81936489]
[1763567457231,0.84388261,2984.4,2983.1,6.81936489]
[1763567457434,0.84388261,2984.4,2983.6,0.1851]
[1763567457435,0.12,2984.3,2983.6,0.1851]
[1763567457636,0.09999999,2983.5,2982.6,0.4916]
[1763567457870,0.84388261,2983.3,2982.6,0.4916]
[1763567458079,0.12,2983.4,2982.6,0.4916]
[1763567458080,0.84388261,2983.2,2982.6,0.4916]
[1763567458250,0.84388261,2983.3,2982.6,0.4916]
[1763567458443,0.96388261,2983.4,2982.6,0.4916]
[1763567458783,0.96388261,2983.4,2983.3,0.1851]
[1763567458963,0.12,2983.4,2983.3,0.1851]
[1763567459176,1.13538896,2984.4,2983.3,0.6767]
[1763567459475,0.09999999,2984.8,2983.3,0.6767]
[1763567459476,1.13538896,2984.8,2983.7,0.90699264]
[1763567459682,1.13538896,2984.8,2984.5,0.1851]
[1763567459845,1.13538896,2984.7,2983.8,0.4916]
[1763567460178,1.13538896,2984.5,2983.8,0.4916]
[1763567460374,0.09999999,2983.9,2983.0,0.4916]
[1763567460536,1.10095922,2983.6,2982.5,0.6767]
[1763567460742,1.20095921,2983.6,2982.6,0.4916]
[1763567460937,0.09999999,2983.6,2982.6,0.4916]
[1763567461282,1.10095922,2983.5,2982.6,0.4916]
[1763567461575,1.10095922,2983.4,2982.9,7.10827744]
[1763567461878,0.60095922,2984.2,2983.7,0.1851]
[1763567462037,2.27077792,2985.0,2983.7,0.1851]
[1763567462038,0.22099999,2985.0,2984.0,0.90699264]
[1763567462235,0.22099999,2985.0,2983.9,7.10827744]
[1763567462236,0.09999999,2984.3,2983.3,0.1841]
[1763567462454,0.6089,2985.0,2982.7,7.10827744]
[1763567462455,1.70308344,2984.0,2983.4,0.1841]
[1763567462785,1.80308343,2984.1,2983.4,0.1841]
[1763567463382,1.70308344,2983.7,2983.4,0.6757]
[1763567463582,1.70308344,2983.8,2983.4,0.6757]
[1763567463784,1.70308344,2983.8,2983.5,0.4916]
[1763567463985,1.70308344,2983.9,2983.5,0.4916]
[1763567464349,1.70308344,2983.8,2983.5,0.4916]
[1763567464550,1.58208344,2984.2,2983.5,0.4916]
[1763567464786,2.27077792,2984.9,2984.2,0.90699264]
[1763567464988,2.27077792,2984.9,2984.8,0.1851]
[1763567465189,0.121,2985.0,2984.2,0.90699264]
[1763567465190,0.121,2985.0,2984.3,0.4916]
[1763567465791,0.121,2985.0,2984.0,0.4916]
[1763567466088,0.121,2985.0,2983.6,0.90699264]
[1763567466295,0.09999999,2984.7,2983.5,0.4916]
[1763567466594,2.37077791,2984.7,2983.5,0.4916]
[1763567467092,2.37077791,2984.9,2983.5,0.4916]
[1763567467488,0.121,2984.8,2983.5,0.4916]
[1763567467663,0.121,2984.8,2983.6,0.90699264]
[1763567467860,2.05837791,2985.0,2984.7,7.1625067]
[1763567468060,2.9594724,2986.3,2985.0,0.90699264]
[1763567468261,2.9594724,2986.3,2984.9,7.1625067]
[1763567468262,0.121,2986.3,2985.7,0.90699264]
[1763567468473,3.0133624,2986.6,2985.7,0.90699264]
[1763567468474,0.121,2986.5,2985.7,0.90699264]
[1763567468774,0.17489,2986.6,2986.3,0.90699264]
[1763567468965,0.65958142,2986.5,2986.3,0.90699264]
[1763567469291,0.121,2987.7,2986.3,4.25561802]
[1763567469491,0.65981178,2987.6,2986.9,0.90699264]
[1763567469694,0.121,2987.7,2987.0,0.121]
[1763567469863,0.65942947,2987.6,2987.0,0.121]
[1763567470179,0.1966,2989.2,2987.5,0.90699264]
[1763567470395,0.97718113,2989.1,2987.5,0.90699264]
[1763567470575,1.15738113,2989.0,2987.5,0.90699264]
[1763567470761,0.65958113,2988.9,2986.5,0.121]
[1763567470962,1.06508513,2988.8,2986.5,0.121]
[1763567471160,0.65958113,2988.7,2986.5,0.121]
[1763567471403,1.15738113,2988.6,2986.5,0.121]
[1763567471611,0.65958113,2988.5,2986.5,0.121]
[1763567471908,0.65958113,2988.4,2986.6,0.90699264]
[1763567472205,0.65958113,2988.3,2986.4,0.90699264]
[1763567472440,0.65958113,2988.2,2987.0,0.90699264]
[1763567472623,0.121,2988.4,2987.0,0.90699264]
[1763567472624,0.65958113,2988.1,2987.0,0.90699264]
[1763567472893,0.65958113,2988.0,2987.1,0.121]
[1763567473069,0.65958113,2987.9,2987.1,0.121]
[1763567473270,0.121,2988.4,2987.0,0.90699264]
[1763567473579,0.65952555,2988.3,2987.0,0.90699264]
[1763567473785,0.65952555,2988.2,2987.0,1.02799264]
[1763567473997,0.65952555,2988.2,2985.8,3.47013458]
[1763567473998,0.65952555,2988.1,2985.7,7.1625067]
[1763567474217,0.4978,2988.3,2985.8,0.121]
[1763567474218,0.65952555,2988.0,2985.8,0.121]
[1763567474394,0.65952555,2987.9,2985.8,0.121]
[1763567474576,0.65952555,2987.8,2985.8,0.121]
[1763567474933,0.65952555,2987.7,2985.8,0.121]
[1763567475061,0.65952555,2987.6,2985.8,0.121]
[1763567475263,0.65952555,2987.5,2985.8,0.121]
[1763567475459,0.65952555,2987.4,2985.8,0.121]
[1763567475772,0.65952555,2987.3,2985.8,0.121]
[1763567476080,0.65952555,2987.2,2985.6,1.02799264]
[1763567476302,0.78052555,2987.1,2985.7,0.121]
[1763567476594,0.65952555,2987.0,2985.7,0.121]
[1763567476796,0.65952555,2986.9,2985.7,0.121]
[1763567477104,0.65952555,2986.8,2985.2,0.121]
[1763567477393,0.65952555,2986.7,2985.2,0.121]
[1763567477595,0.65952555,2986.6,2985.5,7.1625067]
[1763567477772,0.121,2986.7,2985.6,1.02799264]
[1763567478175,0.121,2986.7,2985.7,0.121]
[1763567478712,0.121,2986.7,2986.2,0.90699264]
[1763567479499,0.121,2986.7,2985.7,0.121]
[1763567479702,0.66171062,2986.6,2985.6,0.90699264]
[1763567480014,0.3176,2986.7,2985.6,0.90699264]
[1763567480217,0.66194096,2986.6,2985.6,0.90699264]
[1763567480418,0.3176,2986.7,2985.5,7.1625067]
[1763567480419,0.66194096,2986.5,2985.5,7.1625067]
[1763567480565,0.66194096,2986.4,2985.2,0.121]
[1763567480766,0.66194096,2986.3,2985.2,0.121]
[1763567480997,0.66194096,2986.2,2985.2,0.121]
[1763567481299,0.8154,2986.7,2985.2,0.121]
[1763567481500,0.66281283,2986.6,2985.6,0.90699264]
[1763567481695,0.66281283,2986.5,2985.6,0.90699264]
[1763567481898,0.66201283,2986.4,2985.6,0.90699264]
[1763567482117,0.121,2986.7,2985.6,0.90699264]
[1763567482281,0.121,2986.7,2985.7,0.121]
[1763567482802,0.121,2986.7,2985.3,7.1625067]
[1763567482969,0.121,2986.7,2985.4,0.90699264]
[1763567483173,0.6188,2986.7,2985.2,0.121]
[1763567483375,0.6188,2986.7,2985.0,0.90699264]
[1763567483571,0.6188,2986.7,2985.0,1.02799264]
[1763567483978,0.6188,2986.7,2984.8,0.3362]
[1763567483979,0.6188,2986.7,2984.8,0.001]
[1763567484225,2.82154817,2986.7,2984.8,0.001]
[1763567484399,2.20274817,2986.5,2984.8,0.001]
[1763567484718,0.1962,2984.9,2984.8,0.001]
[1763567484887,0.3172,2984.9,2984.8,0.001]
[1763567485092,0.7815,2984.9,2984.8,0.001]
[1763567485478,0.405504,2984.8,2983.0,0.122]
[1763567485678,1.65921331,2983.9,2981.8,7.1625067]
[1763567485919,1.65921331,2983.9,2981.6,1.6672911]
[1763567485920,1.65921331,2982.9,2981.6,1.6672911]
[1763567486084,0.526504,2983.8,2981.6,1.6672911]
[1763567486085,1.65921331,2982.6,2981.6,0.66]
[1763567486286,0.4643,2982.5,2981.6,0.66]
[1763567486590,0.121,2982.4,2981.6,0.66]
[1763567487111,1.65921331,2982.2,2981.6,0.66]
[1763567487325,1.65921331,2982.1,2981.6,0.16]
[1763567487568,1.65921331,2981.9,2981.6,0.16]
[1763567487886,0.405504,2981.7,2980.0,0.05]
[1763567488089,0.405504,2981.7,2981.0,3.394e-05]
[1763567488090,0.405504,2981.2,2981.0,3.394e-05]
[1763567488331,0.121,2981.1,2981.0,3.394e-05]
[1763567488785,0.5853,2981.1,2981.0,3.394e-05]
[1763567488981,1.65169323,2981.5,2981.0,3.394e-05]
[1763567488982,1.65169323,2981.9,2981.0,3.394e-05]
[1763567489224,0.5853,2981.8,2981.0,3.394e-05]
[1763567489429,0.405504,2981.7,2981.0,3.394e-05]
[1763567489583,2.05719723,2981.6,2981.0,3.394e-05]
[1763567489783,2.05719723,2981.3,2981.0,3.394e-05]
[1763567490096,0.405504,2981.1,2981.0,3.394e-05]
[1763567490324,0.869804,2981.1,2981.0,3.394e-05]
[1763567490620,0.869804,2981.1,2980.0,0.05]
[1763567490621,1.26862042,2981.1,2980.0,0.05]
[1763567490805,0.1962,2980.1,2980.0,0.05]
[1763567491006,0.3172,2980.1,2980.0,0.05]
[1763567491223,0.1962,2981.1,2980.0,0.05]
[1763567491625,0.5853,2981.0,2980.0,0.05]
[1763567491823,0.121,2980.9,2980.0,0.05]
[1763567492047,0.1962,2981.1,2980.0,0.05]
[1763567492231,0.122,2981.0,2980.0,0.05]
[1763567492438,0.1962,2981.1,2980.0,0.05]
[1763567492746,0.122,2981.0,2980.1,0.4969]
[1763567492945,0.122,2980.9,2980.0,0.05]
[1763567493149,3.7126891,2982.1,2980.1,0.4969]
[1763567493150,0.1962,2982.1,2980.1,0.4969]
[1763567493337,0.122,2982.0,2980.1,0.4969]
[1763567493544,0.5863,2982.0,2980.1,0.4969]
[1763567493728,3.93978009,2982.0,2980.0,0.05]
[1763567494052,0.869804,2981.9,2980.0,0.05]
[1763567494251,0.5863,2981.8,2980.1,0.4969]
[1763567494715,0.405504,2981.6,2980.0,0.05]
[1763567495115,0.4643,2981.6,2980.0,0.05]
[1763567495854,0.122,2981.8,2980.1,0.4969]
[1763567496520,0.6605,2982.8,2980.5,0.90699264]
[1763567496851,0.6605,2982.8,2980.4,7.1625067]
[1763567496852,0.5863,2982.7,2980.7,0.90699264]
[1763567497219,0.4643,2982.6,2980.7,0.90699264]
[1763567497426,3.7585036,2982.5,2980.7,0.90699264]
[1763567497626,0.4643,2982.6,2980.8,0.4969]
[1763567497828,0.122,2982.5,2981.3,0.90699264]
[1763567498016,0.122,2982.5,2981.4,0.6671]
[1763567498220,0.122,2982.5,2981.4,0.1811]
[1763567498717,0.4724,2982.4,2980.8,0.486]
[1763567498930,0.4724,2982.4,2980.7,0.1811]
[1763567499131,0.4724,2982.4,2979.9,0.486]
[1763567499132,0.405504,2982.3,2979.9,0.486]
[1763567499332,0.405504,2982.3,2979.8,0.1809]
[1763567499533,0.4724,2982.2,2980.1,0.486]
[1763567499766,0.03948863,2982.1,2980.1,0.486]
[1763567499965,0.405504,2982.0,2980.1,0.486]
[1763567500268,0.877904,2982.0,2980.1,0.486]
[1763567500432,0.877904,2982.0,2979.8,0.1809]
[1763567500632,0.1934,2982.1,2979.8,0.1809]
[1763567500633,0.405504,2981.8,2980.0,0.536]
[1763567500865,0.03948863,2981.7,2980.0,0.536]
[1763567501065,0.4724,2981.8,2980.0,0.536]
[1763567501251,0.03948863,2981.7,2980.0,0.536]
[1763567501451,0.51188863,2981.7,2980.0,0.536]
[1763567501672,0.405504,2981.6,2980.0,0.536]
[1763567501834,0.03948863,2981.5,2980.0,0.05]
[1763567502040,0.527504,2981.4,2980.0,0.05]
[1763567502254,0.405504,2981.2,2980.0,0.05]
[1763567502594,0.405504,2981.0,2980.0,0.05]
[1763567502768,0.405504,2980.8,2980.0,0.05]
[1763567502974,0.03948863,2980.7,2980.0,0.05]
[1763567503176,0.405504,2980.6,2980.0,0.05]
[1763567503475,0.122,2980.5,2980.0,0.05]
[1763567503676,0.16148863,2980.5,2980.0,0.05]
[1763567503841,0.4724,2980.4,2980.0,0.05]
[1763567504369,0.122,2980.5,2980.0,0.05]
[1763567504537,0.03948863,2980.9,2980.0,0.05]
[1763567504734,0.122,2980.8,2980.0,0.536]
[1763567506507,0.122,2980.8,2980.0,0.051]
[1763567506711,0.1212,2980.8,2980.0,0.051]
[1763567507207,0.1212,2980.8,2980.1,0.486]
[1763567507606,0.6658,2982.1,2980.2,0.94054743]
[1763567507912,0.122,2982.0,2980.8,0.90699264]
[1763567508206,0.122,2982.0,2981.4,0.90699264]
[1763567508707,0.122,2982.0,2980.6,0.486]
[1763567508880,0.03948863,2981.9,2980.6,0.486]
[1763567509068,0.122,2982.0,2980.6,0.486]
[1763567510705,0.122,2982.0,2980.8,0.90699264]
[1763567511208,0.122,2982.0,2980.9,0.486]
[1763567511706,0.122,2982.0,2981.0,1.08849264]
[1763567511921,0.122,2982.0,2981.0,0.1815]
[1763567512088,0.122,2982.0,2981.1,0.486]
[1763567514723,0.122,2982.0,2981.4,0.90699264]
[1763567515022,0.66716806,2982.9,2981.4,0.90699264]
[1763567515223,0.121,2983.2,2981.5,0.486]
[1763567515424,0.66793741,2983.1,2981.5,0.486]
[1763567515626,0.70742604,2983.0,2981.5,0.486]
[1763567515926,0.405504,2981.5,2979.0,0.486]
[1763567516099,0.66716604,2981.4,2980.0,0.537]
[1763567516428,0.66716604,2981.3,2980.0,0.051]
[1763567516604,1.75962439,2981.2,2980.0,0.051]
[1763567516925,1.09245835,2981.0,2980.0,0.051]
[1763567517096,0.66716604,2980.9,2980.0,0.051]
[1763567517293,0.66716604,2980.8,2980.0,0.051]
[1763567517492,0.66716604,2980.7,2980.0,0.051]
[1763567517696,0.66716604,2980.6,2980.0,0.051]
[1763567518001,1.75962439,2980.5,2980.0,0.051]
[1763567518189,0.4724,2980.6,2980.0,0.051]
[1763567518190,0.66716604,2980.4,2980.0,0.051]
[1763567518396,1.09245835,2980.6,2980.0,0.051]
[1763567518397,0.66716604,2980.3,2980.0,0.051]
[1763567518716,1.56485835,2980.6,2980.0,0.051]
[1763567518717,0.78916604,2980.2,2980.0,0.051]
[1763567518928,0.122,2980.2,2980.0,0.051]
[1763567519421,0.122,2980.2,2980.0,0.537]
[1763567519939,0.83402078,2981.3,2980.0,0.537]
[1763567520239,0.83402078,2982.0,2981.2,0.1815]
[1763567520456,2.3287634,2981.9,2980.0,0.537]
[1763567520735,0.83402078,2981.4,2980.0,0.051]
[1763567520896,0.83402078,2981.1,2980.0,0.051]
[1763567521092,1.50147477,2981.0,2980.0,0.051]
[1763567521291,1.09245835,2981.2,2980.0,0.051]
[1763567521292,0.78945399,2980.9,2980.0,0.051]
[1763567521508,0.66745399,2980.8,2980.0,0.051]
[1763567521709,1.33325399,2980.7,2980.0,0.051]
[1763567521930,0.66745399,2980.6,2980.0,0.051]
[1763567522242,0.66745399,2980.5,2980.0,0.051]
[1763567522418,0.6658,2980.7,2980.0,0.051]
[1763567522742,0.66753087,2980.6,2980.0,0.051]
[1763567522941,2.11504787,2981.4,2980.0,0.051]
[1763567522942,0.122,2980.7,2980.0,0.051]
[1763567523244,0.66793594,2980.6,2980.0,0.051]
[1763567523544,0.3154,2980.7,2980.0,0.051]
[1763567523545,0.66793594,2980.5,2980.0,0.051]
[1763567523709,0.122,2980.7,2980.0,0.051]
[1763567524042,1.13967689,2980.6,2980.0,0.051]
[1763567524228,0.66727689,2980.5,2980.0,0.051]
[1763567524541,0.83402279,2981.0,2980.0,0.051]
[1763567524743,0.122,2980.7,2980.0,0.537]
[1763567525053,0.122,2980.7,2980.0,0.051]
[1763567526311,0.83402279,2980.5,2980.0,0.051]
[1763567526515,1.50173853,2980.4,2980.0,0.051]
[1763567526706,0.5944,2980.7,2980.0,0.051]
[1763567526707,0.83402279,2980.1,2980.0,0.051]
[1763567526907,0.66771574,2980.1,2980.0,0.051]
[1763567527143,1.97497389,2980.1,2980.0,0.051]
[1763567527341,1.54561974,2980.1,2979.1,0.09083496]
[1763567527540,0.1934,2979.2,2979.1,0.09083496]
[1763567527741,0.98263195,2979.2,2979.1,0.09083496]
[1763567527940,1.81670227,2979.2,2979.1,0.09083496]
[1763567528210,1.26833195,2979.2,2979.1,0.09083496]
[1763567528650,0.122,2979.2,2979.1,0.09083496]
[1763567529274,0.66654847,2979.5,2979.1,0.09083496]
[1763567529416,1.09245835,2980.1,2979.1,0.09083496]
[1763567529417,0.122,2979.2,2979.1,0.09083496]
[1763567529617,0.122,2979.2,2979.1,0.57313496]
[1763567529854,1.02627032,2980.7,2979.1,0.57313496]
[1763567530055,0.66660828,2980.6,2979.2,0.90699264]
[1763567530254,2.12174787,2981.3,2979.3,1.38929264]
[1763567530255,0.122,2980.5,2979.3,1.38929264]
[1763567530757,0.122,2980.5,2979.4,0.4823]
[1763567531261,0.122,2980.5,2979.1,0.09083496]
[1763567531475,0.122,2980.5,2979.2,0.4823]
[1763567531638,0.122,2980.5,2979.3,0.03356493]
[1763567531973,0.1934,2981.9,2980.4,1.08789264]
[1763567532143,0.002,2982.0,2980.4,1.08789264]
[1763567532344,0.122,2981.9,2980.5,0.4823]
[1763567532588,0.122,2981.9,2981.0,0.90699264]
[1763567532724,0.122,2981.9,2981.1,0.1812]
[1763567532924,0.122,2981.9,2981.1,0.6635]
[1763567533147,0.51858863,2981.8,2980.2,0.1809]
[1763567533358,0.51858863,2981.8,2979.8,0.4823]
[1763567533359,0.70559277,2981.7,2979.8,0.4823]
[1763567533527,0.66610414,2981.6,2979.9,0.1809]
[1763567533725,0.7933,2981.9,2980.0,5.86737081]
[1763567533949,0.7933,2981.9,2979.9,0.1809]
[1763567533950,1.18485566,2981.8,2979.9,0.1809]
[1763567534151,0.405504,2981.6,2979.6,0.4823]
[1763567534324,0.405504,2981.6,2979.2,5.86737081]
[1763567534325,0.405504,2981.4,2979.2,5.86737081]
[1763567534525,0.405504,2981.2,2979.3,0.4823]
[1763567534845,1.18485566,2981.3,2979.3,0.4823]
[1763567534846,0.66626703,2981.1,2979.3,1.38929264]
[1763567535165,0.122,2981.0,2979.9,0.90699264]
[1763567535335,0.122,2981.0,2979.4,0.4823]
[1763567535535,0.122,2981.0,2979.4,1.38929264]
[1763567535732,0.122,2981.0,2979.5,0.4823]
[1763567535933,0.03948863,2980.9,2979.1,0.09083496]
[1763567536132,0.405504,2980.7,2979.1,0.09083496]
[1763567536349,0.56147713,2980.6,2979.1,0.09083496]
[1763567536579,0.4791,2980.5,2979.1,0.09083496]
[1763567536795,0.66562032,2980.7,2979.1,0.52313496]
[1763567536955,0.122,2980.7,2979.1,8.1435056]
[1763567537292,0.122,2980.7,2979.2,0.4823]
[1763567538161,0.122,2980.7,2979.7,0.90699264]
[1763567538358,1.54825882,2981.9,2980.6,0.1809]
[1763567538359,0.1922,2981.9,2980.6,0.1809]
[1763567538592,0.002,2982.0,2980.7,0.4823]
[1763567538796,0.122,2981.9,2980.7,0.4823]
[1763567538963,0.03948863,2981.8,2978.4,0.4823]
[1763567539162,0.405504,2980.9,2978.4,0.4823]
[1763567539397,0.405504,2980.7,2978.4,0.4823]
[1763567539688,0.5219885,2980.6,2978.4,0.1812]
[1763567539894,0.92409263,2980.5,2978.4,0.1812]
[1763567540063,0.4791,2980.4,2978.7,0.4823]
[1763567540463,0.51858863,2980.4,2978.7,0.4823]
[1763567541056,0.122,2980.8,2979.2,0.51586605]
[1763567541289,0.4791,2980.7,2979.2,0.4823]
[1763567541477,0.122,2980.8,2979.2,0.4823]
[1763567541893,0.122,2980.8,2979.4,0.90699264]
[1763567542392,0.122,2980.8,2979.4,1.38929264]
[1763567542759,0.122,2980.8,2979.4,0.90699264]
[1763567542963,0.5,2981.0,2979.9,5.86737081]
[1763567543271,0.5,2981.0,2979.5,0.4823]
[1763567544037,0.002,2980.7,2979.6,0.90699264]
[1763567544197,0.002,2980.7,2979.5,3.83854448]
[1763567544198,0.002,2980.7,2979.5,4.74551301]
[1763567544536,0.002,2980.7,2979.6,0.4709]
[1763567544892,0.002,2980.7,2979.7,0.1809]
[1763567545198,0.002,2980.7,2980.0,0.90699264]
[1763567545400,0.002,2980.7,2980.6,0.90699264]
[1763567545821,0.002,2980.7,2980.6,1.37789264]
[1763567546335,0.002,2980.7,2979.9,3.47772425]
[1763567546336,0.002,2980.7,2980.1,6.33827081]
[1763567546537,0.002,2980.7,2979.6,1.37789264]
[1763567546829,0.002,2980.7,2979.6,0.4709]
[1763567547429,0.002,2980.7,2979.8,0.4709]
[1763567547807,0.002,2980.7,2979.3,0.4709]
[1763567548906,0.4715,2980.7,2979.3,0.4709]
[1763567549120,0.002,2980.7,2979.3,0.4709]
[1763567550010,0.002,2980.7,2979.3,3.82739313]
[1763567550224,0.002,2980.7,2979.8,0.90699264]
[1763567550627,0.002,2980.7,2979.7,0.1809]
[1763567550628,0.5,2980.0,2979.7,0.1809]
[1763567551030,0.5,2980.0,2979.7,0.6518]
[1763567551523,0.5,2980.0,2979.8,0.4709]
[1763567552652,0.5,2980.0,2979.9,6.77436345]
[1763567552815,0.002,2980.7,2980.0,0.90699264]
[1763567553008,0.002,2980.7,2980.6,0.90699264]
[1763567553408,0.002,2982.0,2980.6,1.37789264]
[1763567553648,0.002,2982.0,2981.2,0.90699264]
[1763567553832,0.002,2982.0,2981.3,0.6501]
[1763567554037,0.002,2982.0,2981.4,0.90699264]
[1763567554352,0.002,2982.0,2981.4,1.37789264]
[1763567554649,0.002,2982.0,2981.8,0.90699264]
[1763567555160,0.002,2982.0,2981.9,0.4709]
[1763567555649,0.002,2982.0,2981.8,0.90699264]
[1763567555863,0.002,2982.0,2980.6,4.04327677]
[1763567555864,0.5915,2981.9,2979.7,0.1809]
[1763567556013,0.5915,2981.9,2980.2,0.4709]
[1763567556647,0.1212,2981.9,2980.2,0.4709]
[1763567556819,0.4695,2981.8,2980.2,0.4709]
[1763567557536,0.4695,2981.8,2980.2,3.82637745]
[1763567557737,0.1212,2981.9,2980.3,0.90699264]
[1763567557942,0.4584,2981.8,2979.7,0.6526]
[1763567558138,0.4584,2981.8,2979.9,5.86737081]
[1763567558336,0.4584,2981.8,2980.0,0.90699264]
[1763567558550,0.4584,2981.8,2980.0,0.4717]
[1763567558729,0.4584,2981.8,2979.7,3.53693754]
[1763567558730,0.1212,2981.9,2980.2,0.90699264]
[1763567559130,0.1212,2981.9,2980.3,0.4717]
[1763567559317,0.1212,2981.9,2980.8,0.90699264]
[1763567559814,0.1212,2981.9,2980.9,0.6509]
[1763567560217,0.1212,2981.9,2981.0,0.4717]
[1763567560418,0.1212,2981.9,2980.1,5.86737081]
[1763567560419,0.49788863,2981.8,2980.1,5.86737081]
[1763567560646,0.405504,2981.7,2979.7,0.1809]
[1763567560818,0.405504,2981.5,2979.7,0.1809]
[1763567561022,0.405504,2981.3,2979.0,0.001]
[1763567561229,0.405504,2981.3,2979.0,3.35783005]
[1763567561451,0.405504,2981.1,2979.0,0.001]
[1763567561856,0.405504,2980.9,2979.0,0.001]
[1763567562023,0.405504,2980.7,2980.1,0.001]
[1763567562358,0.405504,2980.5,2980.1,0.001]
[1763567562522,0.405504,2980.5,2979.9,0.001]
[1763567562761,0.4584,2980.4,2979.6,0.001]
[1763567567433,0.405504,2980.3,2977.9,0.1809]
[1763567567586,0.183,2979.2,2977.9,0.1809]
[1763567567792,0.304,2979.2,2977.9,0.1809]
[1763567568210,0.121,2979.2,2978.6,0.1822]
[1763567568597,0.121,2979.2,2978.6,0.6539]
[1763567568821,0.121,2979.2,2979.1,0.51253496]
[1763567569250,0.121,2979.2,2979.1,0.04083496]
[1763567569544,0.121,2979.2,2979.1,0.51253496]
[1763567569855,0.121,2980.1,2979.1,0.51253496]
[1763567570018,0.121,2980.1,2979.1,0.04083496]
[1763567570395,0.4584,2980.0,2979.1,0.04083496]
[1763567572109,0.183,2979.2,2979.1,0.04083496]
[1763567572511,0.121,2980.1,2979.1,0.04083496]
[1763567572512,0.4584,2979.6,2979.1,0.04083496]
[1763567572707,0.16048863,2980.1,2979.1,0.04083496]
[1763567572708,0.183,2980.0,2979.1,0.04083496]
[1763567573129,0.4584,2979.9,2979.1,0.04083496]
[1763567573439,0.405504,2979.8,2979.1,0.04083496]
[1763567573949,0.4584,2979.7,2979.1,0.04083496]
[1763567574357,0.49788863,2979.7,2979.1,0.04083496]
[1763567575419,0.4584,2979.7,2979.1,0.04083496]
[1763567575717,0.49788863,2979.7,2979.1,0.04083496]
[1763567576444,3.35615518,2979.6,2977.9,0.90699264]
[1763567576617,0.183,2978.2,2976.9,0.1872]
[1763567576821,0.121,2978.1,2976.9,0.1872]
[1763567577021,0.121,2978.1,2977.0,0.4717]
[1763567577218,0.121,2978.1,2976.9,0.1872]
[1763567577552,0.5794,2978.1,2976.9,0.1872]
[1763567577788,0.121,2978.1,2977.0,0.4717]
[1763567577932,0.4584,2978.0,2976.2,0.4717]
[1763567578441,0.405504,2977.9,2976.0,0.1809]
[1763567578653,0.4584,2978.0,2976.0,0.1809]
[1763567578654,0.4584,2977.8,2976.1,0.4717]
[1763567578847,0.121,2978.1,2976.3,5.86737081]
[1763567579068,0.121,2978.1,2976.4,0.90699264]
[1763567579278,0.121,2978.1,2976.5,5.86737081]
[1763567579424,0.121,2978.1,2976.6,0.90699264]